[Event "Baltic Zonal III Stage 2018"]
[Site "Liepaja"]
[Date "2018.07.11"]
[Round "4"]
[White "Vicas, Marijus"]
[Black "Kveinys, Aloyzas"]
[Result "1-0"]
[ECO "B32"]
[WhiteElo "2183"]
[BlackElo "2537"]
[Annotator "RC"]
[PlyCount "45"]
[EventDate "2018.07.09"]
[EventType "swiss"]
[EventCountry "LAT"]
[SourceTitle "playchess.com"]
[Source "ChessBase"]
[SourceQuality "1"]
[TimeControl "5400+30"]

1. e4 {[%emt 0:00:00]} c5 {[%emt 0:00:00]} 2. Nf3 {[%emt 0:00:00]} Nc6 {[%emt 0:00:30]} 3. d4 {[%emt 0:00:25]} cxd4 {[%emt 0:00:21]} 4. Nxd4 {[%emt 0:00:05]} Qb6 {[%emt 0:02:19]} 5. Nb3 {[%emt 0:00:13]} Nf6 {[%emt 0:00:21]} 6. Nc3 {[%emt 0:01:03]} e6 {[%emt 0:00:14]} 7. Bd3 {[%emt 0:02:38]} a6 {[%emt 0:00:43]} 8. Be3 {[%emt 0:00:48]} Qc7 {[%emt 0:00:14]} 9. O-O {[%emt 0:00:12]} b5 {[%emt 0:05:30]} 10. f4 {[%emt 0:05:24]} d6 {[%emt 0:01:25]} 11. Qf3 {[%emt 0:02:01]} Bb7 {[%emt 0:00:51]} 12. a3 {[%emt 0:03:54]} Be7 {[%emt 0:01:15]} 13. Rae1 {[%emt 0:03:29]} O-O {[%emt 0:09:51]} 14. Qh3 {[%emt 0:01:07]} Rad8 {[%emt 0:05:55]} 15. g4 {[%emt 0:08:14]} b4 {[%emt 0:13:49]} 16. g5 {[%emt 0:11:53]} bxc3 {[%emt 0:03:59]} 17. gxf6 {[%emt 0:18:14]} gxf6 {[%emt 0:00:23]} 18. Rf3 {[%emt 0:06:16]} Kh8 {[%emt 0:00:56]} 19. Kf2 {[%emt 0:04:42]} Rg8 {[%emt 0:00:20]} 20. Rg3 {[%emt 0:02:03]} Rg6 {[%emt 0:03:48]} 21. Reg1 {[%emt 0:12:45]} Rdg8 {[%emt 0:04:59]} 22. f5 {[%emt 0:00:05]} exf5 {[%emt 0:00:11]} 23. Qxh7+ {[%emt 0:00:20]} 1-0

[Event "Baltic Zonal III Stage 2018"]
[Site "Liepaja"]
[Date "2018.07.12"]
[Round "5"]
[White "Kulaots, Kaido"]
[Black "Pultinevicius, Paulius"]
[Result "1-0"]
[ECO "A34"]
[WhiteElo "2555"]
[BlackElo "2422"]
[Annotator "RC"]
[PlyCount "51"]
[EventDate "2018.07.09"]
[EventType "swiss"]
[EventCountry "LAT"]
[SourceTitle "playchess.com"]
[Source "ChessBase"]
[SourceQuality "1"]
[TimeControl "5400+30"]

1. c4 {[%emt 0:00:00]} Nf6 {[%emt 0:00:45]} 2. Nc3 {[%emt 0:00:00]} c5 {[%emt 0:00:05]} 3. Nf3 {[%emt 0:00:04]} d5 {[%emt 0:01:48]} 4. cxd5 {[%emt 0:00:11]} Nxd5 {[%emt 0:00:04]} 5. e3 {[%emt 0:01:01]} Nxc3 {[%emt 0:01:44]} 6. dxc3 {[%emt 0:00:34]} Qc7 {[%emt 0:05:10]} 7. e4 {[%emt 0:01:24]} e6 {[%emt 0:03:11]} 8. Qd2 {[%emt 0:01:11]} Nc6 {[%emt 0:01:10]} 9. Qg5 {[%emt 0:02:23]} h6 {[%emt 0:00:21]} 10. Qg3 {[%emt 0:00:40]} Qxg3 {[%emt 0:01:52]} 11. hxg3 {[%emt 0:00:31]} Bd7 {[%emt 0:09:11]} 12. Be3 {[%emt 0:04:54]} Be7 {[%emt 0:04:51]} 13. O-O-O {[%emt 0:03:38]} O-O-O {[%emt 0:00:21]} 14. g4 {[%emt 0:12:41]} e5 {[%emt 0:11:41]} 15. Bc4 {[%emt 0:03:38]} f6 {[%emt 0:11:05]} 16. Nh4 {[%emt 0:02:56]} Bxg4 {[%emt 0:00:30]} 17. f3 {[%emt 0:00:21]} Rxd1+ {[%emt 0:03:42]} 18. Rxd1 {[%emt 0:00:32]} Bd7 {[%emt 0:04:30]} 19. Ng6 {[%emt 0:00:14]} Rd8 {[%emt 0:00:20]} 20. Nxe7+ {[%emt 0:07:22]} Nxe7 {[%emt 0:00:14]} 21. Bxc5 {[%emt 0:00:08]} Nc6 {[%emt 0:00:17]} 22. b4 {[%emt 0:02:29]} Re8 {[%emt 0:03:02]} 23. b5 {[%emt 0:06:34]} Na5 {[%emt 0:01:52]} 24. Bf7 {[%emt 0:00:13]} Rh8 {[%emt 0:00:02]} 25. Bxa7 {[%emt 0:01:36]} Bxb5 {[%emt 0:01:58]} 26. Rd5 {[%emt 0:01:34]} 1-0

[Event "Baltic Zonal III Stage 2018"]
[Site "Liepaja"]
[Date "2018.07.12"]
[Round "5"]
[White "Kanep, Meelis"]
[Black "Ladva, Ottomar"]
[Result "1/2-1/2"]
[ECO "D41"]
[WhiteElo "2440"]
[BlackElo "2498"]
[Annotator "RC"]
[PlyCount "23"]
[EventDate "2018.07.09"]
[EventType "swiss"]
[EventCountry "LAT"]
[SourceTitle "playchess.com"]
[Source "ChessBase"]
[SourceQuality "1"]
[TimeControl "5400+30"]

1. d4 {[%emt 0:00:00]} Nf6 {[%emt 0:00:00]} 2. c4 {[%emt 0:00:27]} e6 {[%emt 0:00:00]} 3. Nf3 {[%emt 0:00:18]} d5 {[%emt 0:00:03]} 4. Nc3 {[%emt 0:00:13]} c5 {[%emt 0:01:43]} 5. cxd5 {[%emt 0:00:23]} Nxd5 {[%emt 0:00:03]} 6. e4 {[%emt 0:00:24]} Nxc3 {[%emt 0:00:06]} 7. bxc3 {[%emt 0:00:05]} cxd4 {[%emt 0:00:03]} 8. cxd4 {[%emt 0:00:06]} Bb4+ {[%emt 0:00:02]} 9. Bd2 {[%emt 0:00:08]} Bxd2+ {[%emt 0:00:04]} 10. Qxd2 {[%emt 0:00:08]} O-O {[%emt 0:00:04]} 11. Bc4 {[%emt 0:00:09]} Nd7 {[%emt 0:00:52]} 12. O-O {[%emt 0:00:24]} 1/2-1/2

[Event "Baltic Zonal III Stage 2018"]
[Site "Liepaja"]
[Date "2018.07.12"]
[Round "5"]
[White "Bernotas, Arturs"]
[Black "Klabis, Rokas"]
[Result "1/2-1/2"]
[ECO "C45"]
[WhiteElo "2413"]
[BlackElo "2347"]
[Annotator "NA"]
[PlyCount "129"]
[EventDate "2018.07.09"]
[EventType "swiss"]
[EventCountry "LAT"]
[SourceTitle "playchess.com"]
[Source "ChessBase"]
[SourceQuality "1"]
[TimeControl "5400+30"]

1. e4 {[%emt 0:08:37]} e5 {[%emt 0:00:00]} 2. Nf3 {[%emt 0:00:10]} Nc6 {[%emt 0:00:00]} 3. d4 {[%emt 0:00:12]} exd4 {[%emt 0:00:00]} 4. Nxd4 {[%emt 0:00:10]} Nf6 {[%emt 0:00:10]} 5. Nxc6 {[%emt 0:01:11]} bxc6 {[%emt 0:00:04]} 6. e5 {[%emt 0:00:34]} Qe7 {[%emt 0:00:27]} 7. Qe2 {[%emt 0:00:33]} Nd5 {[%emt 0:00:05]} 8. c4 {[%emt 0:00:37]} Ba6 {[%emt 0:00:04]} 9. Nd2 {[%emt 0:02:40]} g6 {[%emt 0:02:17]} 10. Nf3 {[%emt 0:03:34]} Qb4+ {[%emt 0:00:44]} 11. Kd1 {[%emt 0:01:18]} Ne7 {[%emt 0:04:10]} 12. Qc2 {[%emt 0:08:54]} Bg7 {[%emt 0:07:44]} 13. Qb3 {[%emt 0:09:28]} Qb6 {[%emt 0:18:57]} 14. Bg5 {[%emt 0:21:01]} c5 {[%emt 0:11:32]} 15. Bd3 {[%emt 0:01:10]} Bb7 {[%emt 0:05:50]} 16. Re1 {[%emt 0:00:31]} Rb8 {[%emt 0:11:38]} 17. Qxb6 {[%emt 0:04:13]} axb6 {[%emt 0:03:08]} 18. Bf6 {[%emt 0:00:54]} Kf8 {[%emt 0:00:24]} 19. Kc2 {[%emt 0:01:43]} Bxf3 {[%emt 0:04:40]} 20. Bxg7+ {[%emt 0:04:09]} Kxg7 {[%emt 0:00:03]} 21. gxf3 {[%emt 0:00:10]} Nc6 {[%emt 0:00:22]} 22. Kc3 {[%emt 0:01:16]} Rhe8 {[%emt 0:03:33]} 23. f4 {[%emt 0:00:12]} f6 {[%emt 0:00:38]} 24. exf6+ {[%emt 0:03:29]} Kxf6 {[%emt 0:00:04]} 25. h4 {[%emt 0:00:22]} Nd4 {[%emt 0:01:52]} 26. h5 {[%emt 0:02:44]} Rxe1 {[%emt 0:02:42]} 27. Rxe1 {[%emt 0:00:08]} Ne6 {[%emt 0:00:02]} 28. hxg6 {[%emt 0:12:44]} hxg6 {[%emt 0:00:08]} 29. Rh1 {[%emt 0:00:13]} Nxf4 {[%emt 0:02:56]} 30. Rh7 {[%emt 0:00:13]} Rd8 {[%emt 0:00:26]} 31. a3 {[%emt 0:00:13]} Ne6 {[%emt 0:01:39]} 32. b4 {[%emt 0:01:21]} d5 {[%emt 0:08:10]} 33. cxd5 {[%emt 0:01:38]} Rxd5 {[%emt 0:00:31]} 34. Bc4 {[%emt 0:03:10]} Rh5 {[%emt 0:00:05]} 35. Rd7 {[%emt 0:00:36]} Rh3+ {[%emt 0:01:46]} 36. Kd2 {[%emt 0:00:52]} Rxa3 {[%emt 0:05:46]} 37. bxc5 {[%emt 0:00:15]} bxc5 {[%emt 0:01:07]} 38. Bxe6 {[%emt 0:01:09]} Kxe6 {[%emt 0:00:03]} 39. Rxc7 {[%emt 0:00:08]} Kd5 {[%emt 0:02:48]} 40. Rd7+ {[%emt 0:00:47]} Ke5 {[%emt 0:00:15]} 41. Rc7 {[%emt 0:00:58]} Kd4 {[%emt 0:01:00]} 42. Rd7+ {[%emt 0:00:02]} Ke4 {[%emt 0:00:12]} 43. Re7+ {[%emt 0:00:31]} Kf3 {[%emt 0:00:35]} 44. Rf7+ {[%emt 0:00:09]} Kg4 {[%emt 0:00:15]} 45. Rc7 {[%emt 0:00:38]} Ra2+ {[%emt 0:00:08]} 46. Ke3 {[%emt 0:00:24]} Rc2 {[%emt 0:00:20]} 47. Rf7 {[%emt 0:01:40]} Rc1 {[%emt 0:01:01]} 48. Kd2 {[%emt 0:00:39]} Rc4 {[%emt 0:00:47]} 49. Ke3 {[%emt 0:00:03]} g5 {[%emt 0:00:37]} 50. f3+ {[%emt 0:01:12]} Kh5 {[%emt 0:00:16]} 51. Rf6 {[%emt 0:00:23]} Rc1 {[%emt 0:00:53]} 52. Kf2 {[%emt 0:02:05]} Rc3 {[%emt 0:01:05]} 53. Rc6 {[%emt 0:00:34]} c4 {[%emt 0:00:44]} 54. Kg3 {[%emt 0:00:09]} Rc2 {[%emt 0:00:35]} 55. Kh3 {[%emt 0:00:09]} Rc1 {[%emt 0:00:21]} 56. Kg3 {[%emt 0:00:29]} c3 {[%emt 0:00:19]} 57. Kh3 {[%emt 0:00:32]} c2 {[%emt 0:00:21]} 58. Kg2 {[%emt 0:00:06]} g4 {[%emt 0:00:15]} 59. fxg4+ {[%emt 0:00:18]} Kxg4 {[%emt 0:00:03]} 60. Rc4+ {[%emt 0:00:14]} Kf5 {[%emt 0:00:07]} 61. Rc5+ {[%emt 0:00:25]} Ke4 {[%emt 0:00:08]} 62. Rc8 {[%emt 0:00:11]} Kd4 {[%emt 0:00:15]} 63. Rd8+ {[%emt 0:00:12]} Ke5 {[%emt 0:00:13]} 64. Re8+ {[%emt 0:00:10]} Kd4 {[%emt 0:00:08]} 65. Rd8+ {[%emt 0:00:14]} 1/2-1/2

[Event "Baltic Zonal III Stage 2018"]
[Site "Liepaja"]
[Date "2018.07.12"]
[Round "5"]
[White "Samolins, Vitalijs"]
[Black "Vicas, Marijus"]
[Result "1-0"]
[ECO "C45"]
[WhiteElo "2400"]
[BlackElo "2183"]
[Annotator "NA"]
[PlyCount "101"]
[EventDate "2018.07.09"]
[EventType "swiss"]
[EventCountry "LAT"]
[SourceTitle "playchess.com"]
[Source "ChessBase"]
[SourceQuality "1"]
[TimeControl "5400+30"]

1. e4 {[%emt 0:00:00]} e5 {[%emt 0:00:00]} 2. Nf3 {[%emt 0:00:00]} Nc6 {[%emt 0:00:00]} 3. d4 {[%emt 0:00:02]} exd4 {[%emt 0:00:00]} 4. Nxd4 {[%emt 0:00:07]} Nf6 {[%emt 0:00:03]} 5. Nxc6 {[%emt 0:00:35]} bxc6 {[%emt 0:00:11]} 6. e5 {[%emt 0:00:10]} Qe7 {[%emt 0:00:18]} 7. Qe2 {[%emt 0:00:07]} Nd5 {[%emt 0:00:10]} 8. h4 {[%emt 0:01:52]} f6 {[%emt 0:07:04]} 9. c4 {[%emt 0:00:23]} Ba6 {[%emt 0:00:41]} 10. Rh3 {[%emt 0:00:09]} Qb4+ {[%emt 0:19:35]} 11. Kd1 {[%emt 0:25:30]} O-O-O {[%emt 0:01:42]} 12. Ra3 {[%emt 0:06:36]} Bxc4 {[%emt 0:00:12]} 13. Qxc4 {[%emt 0:00:21]} Qxc4 {[%emt 0:00:04]} 14. Bxc4 {[%emt 0:00:05]} Bxa3 {[%emt 0:00:05]} 15. Nxa3 {[%emt 0:00:32]} fxe5 {[%emt 0:00:08]} 16. g3 {[%emt 0:04:01]} Rhf8 {[%emt 0:01:06]} 17. Ke2 {[%emt 0:00:40]} Kb7 {[%emt 0:02:47]} 18. Bd2 {[%emt 0:13:34]} h6 {[%emt 0:03:12]} 19. Bb3 {[%emt 0:03:38]} Nb6 {[%emt 0:09:44]} 20. Rc1 {[%emt 0:04:56]} d5 {[%emt 0:04:16]} 21. Nb1 {[%emt 0:04:33]} Rf6 {[%emt 0:01:31]} 22. a4 {[%emt 0:04:07]} Rb8 {[%emt 0:03:10]} 23. a5 {[%emt 0:02:20]} Nd7 {[%emt 0:01:51]} 24. Ba4 {[%emt 0:02:10]} Rbf8 {[%emt 0:01:44]} 25. Be1 {[%emt 0:06:03]} e4 {[%emt 0:01:11]} 26. Nd2 {[%emt 0:00:14]} Ne5 {[%emt 0:00:08]} 27. Nb3 {[%emt 0:00:17]} a6 {[%emt 0:27:26]} 28. Rc2 {[%emt 0:05:25]} g5 {[%emt 0:06:31]} 29. hxg5 {[%emt 0:02:09]} hxg5 {[%emt 0:00:01]} 30. Nd4 {[%emt 0:00:20]} R8f7 {[%emt 0:00:42]} 31. b4 {[%emt 0:02:37]} Rh7 {[%emt 0:03:30]} 32. Bd2 {[%emt 0:02:13]} Rh2 {[%emt 0:00:39]} 33. Be3 {[%emt 0:00:20]} Ng4 {[%emt 0:01:23]} 34. Rxc6 {[%emt 0:03:09]} Rf7 {[%emt 0:02:28]} 35. Ne6 {[%emt 0:00:52]} Rfxf2+ {[%emt 0:01:52]} 36. Bxf2 {[%emt 0:00:01]} Rxf2+ {[%emt 0:00:02]} 37. Ke1 {[%emt 0:00:16]} Ra2 {[%emt 0:00:26]} 38. Nc5+ {[%emt 0:02:57]} Kc8 {[%emt 0:01:00]} 39. Bb3 {[%emt 0:00:04]} Rb2 {[%emt 0:02:04]} 40. Bxd5 {[%emt 0:00:13]} Rb1+ {[%emt 0:00:19]} 41. Ke2 {[%emt 0:02:14]} Rb2+ {[%emt 0:00:02]} 42. Kd1 {[%emt 0:00:03]} Ne3+ {[%emt 0:00:29]} 43. Kc1 {[%emt 0:00:05]} Rc2+ {[%emt 0:00:04]} 44. Kb1 {[%emt 0:00:05]} Nxd5 {[%emt 0:00:04]} 45. Rxa6 {[%emt 0:01:31]} Rxc5 {[%emt 0:01:46]} 46. bxc5 {[%emt 0:00:01]} Kb7 {[%emt 0:00:45]} 47. Rg6 {[%emt 0:00:45]} c6 {[%emt 0:00:28]} 48. Rxg5 {[%emt 0:00:34]} Nc3+ {[%emt 0:00:29]} 49. Kc2 {[%emt 0:00:14]} Ne2 {[%emt 0:00:03]} 50. Kd2 {[%emt 0:00:21]} Nd4 {[%emt 0:00:13]} 51. Ke3 {[%emt 0:00:09]} 1-0

[Event "Baltic Zonal III Stage 2018"]
[Site "Liepaja"]
[Date "2018.07.12"]
[Round "5"]
[White "Chukavin, Kirill"]
[Black "Rogule, Laura"]
[Result "1-0"]
[ECO "B67"]
[WhiteElo "2303"]
[BlackElo "2320"]
[Annotator "NA"]
[PlyCount "79"]
[EventDate "2018.07.09"]
[EventType "swiss"]
[EventCountry "LAT"]
[SourceTitle "playchess.com"]
[Source "ChessBase"]
[SourceQuality "1"]
[TimeControl "5400+30"]

1. e4 {[%emt 0:00:25]} c5 {[%emt 0:00:00]} 2. Nf3 {[%emt 0:00:09]} Nc6 {[%emt 0:00:00]} 3. d4 {[%emt 0:00:07]} cxd4 {[%emt 0:00:00]} 4. Nxd4 {[%emt 0:00:04]} Nf6 {[%emt 0:00:09]} 5. Nc3 {[%emt 0:00:08]} d6 {[%emt 0:00:23]} 6. Bg5 {[%emt 0:00:08]} e6 {[%emt 0:02:58]} 7. Qd2 {[%emt 0:00:15]} a6 {[%emt 0:04:54]} 8. O-O-O {[%emt 0:00:30]} Bd7 {[%emt 0:13:20]} 9. f4 {[%emt 0:00:23]} b5 {[%emt 0:06:07]} 10. Bxf6 {[%emt 0:01:18]} gxf6 {[%emt 0:01:45]} 11. Kb1 {[%emt 0:00:22]} Qb6 {[%emt 0:02:03]} 12. Nce2 {[%emt 0:00:22]} O-O-O {[%emt 0:07:02]} 13. g3 {[%emt 0:05:11]} Kb8 {[%emt 0:24:41]} 14. Bg2 {[%emt 0:06:12]} Rc8 {[%emt 0:01:36]} 15. f5 {[%emt 0:09:07]} h5 {[%emt 0:11:03]} 16. fxe6 {[%emt 0:03:33]} fxe6 {[%emt 0:01:15]} 17. Bh3 {[%emt 0:02:24]} Nd8 {[%emt 0:05:51]} 18. Qd3 {[%emt 0:10:04]} Bh6 {[%emt 0:02:20]} 19. Rhf1 {[%emt 0:00:10]} Bg5 {[%emt 0:00:46]} 20. Nf4 {[%emt 0:12:00]} Bxf4 {[%emt 0:00:16]} 21. gxf4 {[%emt 0:00:06]} Rg8 {[%emt 0:02:17]} 22. Qf3 {[%emt 0:00:06]} Rc4 {[%emt 0:02:05]} 23. c3 {[%emt 0:05:16]} b4 {[%emt 0:00:50]} 24. Ka1 {[%emt 0:00:36]} bxc3 {[%emt 0:00:41]} 25. bxc3 {[%emt 0:00:06]} Ka7 {[%emt 0:03:29]} 26. Rb1 {[%emt 0:01:29]} Qa5 {[%emt 0:00:26]} 27. Rfc1 {[%emt 0:02:37]} Re8 {[%emt 0:02:13]} 28. Nb3 {[%emt 0:06:00]} Qc7 {[%emt 0:00:06]} 29. Bf1 {[%emt 0:01:19]} Rc6 {[%emt 0:00:19]} 30. c4 {[%emt 0:02:22]} Rh8 {[%emt 0:01:46]} 31. Qe3+ {[%emt 0:02:47]} Ka8 {[%emt 0:00:06]} 32. e5 {[%emt 0:00:44]} dxe5 {[%emt 0:02:00]} 33. fxe5 {[%emt 0:00:31]} Rg8 {[%emt 0:01:40]} 34. exf6 {[%emt 0:04:06]} Qxh2 {[%emt 0:00:27]} 35. Na5 {[%emt 0:01:48]} Rc7 {[%emt 0:01:55]} 36. Rb2 {[%emt 0:01:41]} Qd6 {[%emt 0:00:24]} 37. Bg2+ {[%emt 0:00:14]} Rxg2 {[%emt 0:00:39]} 38. Rxg2 {[%emt 0:00:06]} Rc5 {[%emt 0:00:27]} 39. Rg8 {[%emt 0:01:26]} Bc8 {[%emt 0:00:32]} 40. Rxd8 {[%emt 0:01:33]} 1-0

[Event "Baltic Zonal III Stage 2018"]
[Site "Liepaja"]
[Date "2018.07.12"]
[Round "5"]
[White "Haavamae, Henrik"]
[Black "Pedoson, Georg Aleksander"]
[Result "1/2-1/2"]
[ECO "D91"]
[WhiteElo "2185"]
[BlackElo "2176"]
[Annotator "NA"]
[PlyCount "26"]
[EventDate "2018.07.09"]
[EventType "swiss"]
[EventCountry "LAT"]
[SourceTitle "playchess.com"]
[Source "ChessBase"]
[SourceQuality "1"]
[TimeControl "5400+30"]

1. d4 {[%emt 0:01:13]} Nf6 {[%emt 0:00:00]} 2. c4 {[%emt 0:00:14]} g6 {[%emt 0:00:00]} 3. Nc3 {[%emt 0:00:09]} d5 {[%emt 0:00:00]} 4. Nf3 {[%emt 0:00:26]} Bg7 {[%emt 0:00:00]} 5. Bg5 {[%emt 0:00:11]} Ne4 {[%emt 0:00:00]} 6. Bf4 {[%emt 0:00:09]} Nxc3 {[%emt 0:00:02]} 7. bxc3 {[%emt 0:00:07]} c5 {[%emt 0:00:17]} 8. e3 {[%emt 0:00:10]} O-O {[%emt 0:00:06]} 9. cxd5 {[%emt 0:00:10]} cxd4 {[%emt 0:00:02]} 10. cxd4 {[%emt 0:00:10]} Qxd5 {[%emt 0:00:03]} 11. Be2 {[%emt 0:00:11]} Qa5+ {[%emt 0:00:02]} 12. Qd2 {[%emt 0:00:08]} Qxd2+ {[%emt 0:00:05]} 13. Kxd2 {[%emt 0:00:09]} Nc6 {[%emt 0:00:02]} 1/2-1/2

[Event "Baltic Zonal III Stage 2018"]
[Site "Liepaja"]
[Date "2018.07.13"]
[Round "6"]
[White "Kovalenko, Igor"]
[Black "Sulskis, Sarunas"]
[Result "1-0"]
[ECO "D37"]
[WhiteElo "2624"]
[BlackElo "2507"]
[Annotator "ChessBase"]
[PlyCount "65"]
[EventDate "2018.07.09"]
[EventType "swiss"]
[EventCountry "LAT"]
[SourceTitle "playchess.com"]
[Source "ChessBase"]
[SourceQuality "1"]
[TimeControl "5400+30"]

1. d4 {[%emt 0:00:00]} Nf6 {[%emt 0:00:00]} 2. Nf3 {[%emt 0:00:00]} d5 {[%emt 0:01:04]} 3. c4 {[%emt 0:00:00]} e6 {[%emt 0:00:10]} 4. Nc3 {[%emt 0:00:00]} dxc4 {[%emt 0:00:16]} 5. e4 {[%emt 0:00:03]} Bb4 {[%emt 0:00:21]} 6. Bxc4 {[%emt 0:00:04]} Nxe4 {[%emt 0:00:07]} 7. O-O {[%emt 0:00:03]} Nxc3 {[%emt 0:08:00]} 8. bxc3 {[%emt 0:00:04]} Bd6 {[%emt 0:00:07]} 9. Ng5 {[%emt 0:01:48]} h6 {[%emt 0:03:59]} 10. Qh5 {[%emt 0:02:28]} O-O {[%emt 0:01:07]} 11. Ne4 {[%emt 0:02:25]} f5 {[%emt 0:02:06]} 12. Nxd6 {[%emt 0:01:53]} cxd6 {[%emt 0:00:37]} 13. Re1 {[%emt 0:05:42]} d5 {[%emt 0:09:59]} 14. Bb3 {[%emt 0:00:34]} Nc6 {[%emt 0:07:39]} 15. Bf4 {[%emt 0:08:09]} Bd7 {[%emt 0:06:19]} 16. Re3 {[%emt 0:06:36]} Qf6 {[%emt 0:02:37]} 17. Rae1 {[%emt 0:00:24]} Kh7 {[%emt 0:02:27]} 18. Ba4 {[%emt 0:04:23]} g5 {[%emt 0:16:16]} 19. Bd6 {[%emt 0:00:26]} Rfc8 {[%emt 0:04:05]} 20. c4 {[%emt 0:11:59]} g4 {[%emt 0:07:42]} 21. Bxc6 {[%emt 0:19:05]} Rxc6 {[%emt 0:01:33]} 22. Be5 {[%emt 0:00:03]} Qg6 {[%emt 0:04:25]} 23. Qh4 {[%emt 0:07:58]} Qg5 {[%emt 0:00:41]} 24. Qg3 {[%emt 0:00:01]} Rxc4 {[%emt 0:00:26]} 25. h3 {[%emt 0:00:12]} Rg8 {[%emt 0:03:33]} 26. hxg4 {[%emt 0:00:12]} Qxg4 {[%emt 0:02:36]} 27. Qh2 {[%emt 0:00:02]} Rg6 {[%emt 0:04:02]} 28. Rg3 {[%emt 0:05:01]} Qe2 {[%emt 0:00:51]} 29. Rf1 {[%emt 0:02:24]} Rc8 {[%emt 0:08:47]} 30. Qh4 {[%emt 0:01:23]} Rxg3 {[%emt 0:00:28]} 31. Qe7+ {[%emt 0:00:27]} Kg6 {[%emt 0:00:20]} 32. fxg3 {[%emt 0:00:38]} Qe3+ {[%emt 0:02:00]} 33. Kh2 {[%emt 0:00:10]} 1-0

[Event "Baltic Zonal III Stage 2018"]
[Site "Liepaja"]
[Date "2018.07.13"]
[Round "6"]
[White "Neiksans, Arturs"]
[Black "Klabis, Rokas"]
[Result "1-0"]
[ECO "E11"]
[WhiteElo "2567"]
[BlackElo "2347"]
[Annotator "ChessBase"]
[PlyCount "87"]
[EventDate "2018.07.09"]
[EventType "swiss"]
[EventCountry "LAT"]
[SourceTitle "playchess.com"]
[Source "ChessBase"]
[SourceQuality "1"]
[TimeControl "5400+30"]

1. d4 {[%emt 0:00:00]} Nf6 {[%emt 0:00:00]} 2. c4 {[%emt 0:00:00]} e6 {[%emt 0:00:15]} 3. Nf3 {[%emt 0:00:00]} Bb4+ {[%emt 0:00:10]} 4. Bd2 {[%emt 0:00:05]} a5 {[%emt 0:00:51]} 5. Qc2 {[%emt 0:04:48]} O-O {[%emt 0:06:16]} 6. e4 {[%emt 0:03:50]} d6 {[%emt 0:09:17]} 7. Nc3 {[%emt 0:06:09]} Nc6 {[%emt 0:28:26]} 8. a3 {[%emt 0:09:19]} Bxc3 {[%emt 0:00:12]} 9. Bxc3 {[%emt 0:00:04]} Qe7 {[%emt 0:02:35]} 10. e5 {[%emt 0:06:05]} dxe5 {[%emt 0:00:42]} 11. dxe5 {[%emt 0:00:05]} Nd7 {[%emt 0:01:49]} 12. Bd3 {[%emt 0:00:34]} h6 {[%emt 0:06:12]} 13. h4 {[%emt 0:11:32]} Rd8 {[%emt 0:09:41]} 14. Bh7+ {[%emt 0:00:49]} Kf8 {[%emt 0:01:09]} 15. Be4 {[%emt 0:01:04]} Nc5 {[%emt 0:09:20]} 16. Bxc6 {[%emt 0:04:30]} Nd3+ {[%emt 0:00:47]} 17. Kf1 {[%emt 0:00:48]} bxc6 {[%emt 0:00:34]} 18. Rd1 {[%emt 0:06:25]} Ba6 {[%emt 0:03:44]} 19. Rxd3 {[%emt 0:00:23]} Bxc4 {[%emt 0:00:38]} 20. Bd4 {[%emt 0:00:04]} Bxd3+ {[%emt 0:00:53]} 21. Qxd3 {[%emt 0:00:04]} Kg8 {[%emt 0:02:11]} 22. Qc2 {[%emt 0:02:23]} c5 {[%emt 0:02:19]} 23. Bc3 {[%emt 0:01:56]} Rd5 {[%emt 0:02:35]} 24. g3 {[%emt 0:01:08]} Qd7 {[%emt 0:00:21]} 25. Kg2 {[%emt 0:00:50]} Qb5 {[%emt 0:01:05]} 26. Qe4 {[%emt 0:00:41]} Rad8 {[%emt 0:00:48]} 27. Re1 {[%emt 0:00:23]} a4 {[%emt 0:01:12]} 28. h5 {[%emt 0:01:30]} Qa6 {[%emt 0:00:43]} 29. Qc2 {[%emt 0:01:56]} Qb5 {[%emt 0:00:15]} 30. Qe4 {[%emt 0:03:00]} Qa6 {[%emt 0:01:10]} 31. g4 {[%emt 0:00:05]} Qb5 {[%emt 0:00:32]} 32. g5 {[%emt 0:00:41]} hxg5 {[%emt 0:00:58]} 33. Nxg5 {[%emt 0:00:16]} f5 {[%emt 0:02:54]} 34. Qf3 {[%emt 0:14:00]} Rd3 {[%emt 0:00:33]} 35. Re3 {[%emt 0:00:05]} Qc4 {[%emt 0:00:42]} 36. Rxd3 {[%emt 0:00:21]} Qxd3 {[%emt 0:00:39]} 37. Qxd3 {[%emt 0:00:04]} Rxd3 {[%emt 0:00:03]} 38. Nxe6 {[%emt 0:00:06]} Kf7 {[%emt 0:00:38]} 39. Nf4 {[%emt 0:00:55]} Rd1 {[%emt 0:00:52]} 40. e6+ {[%emt 0:00:04]} Kg8 {[%emt 0:00:16]} 41. e7 {[%emt 0:00:54]} Kf7 {[%emt 0:00:07]} 42. Ng6 {[%emt 0:00:11]} f4 {[%emt 0:01:06]} 43. Bxg7 {[%emt 0:00:26]} Rd5 {[%emt 0:00:25]} 44. Be5 {[%emt 0:00:16]} 1-0